bitfinex-derivatives/quotes_SOLF0:USTF0_20241101
["timestamp","ask_amount","ask_price","bid_price","bid_amount"]
[1730469805376,13.3465017,172.37,172.23,5.2]
[1730469805577,2.9036,172.33,172.23,5.2]
[1730469805771,13.3465017,172.37,172.27,2.9044]
[1730469805973,1.2485,172.38,172.23,5.2]
[1730469806167,2.9035,172.34,172.23,5.2]
[1730469806368,1.2485,172.38,172.23,5.2]
[1730469806781,2.9041,172.3,172.27,2.9045]
[1730469806982,13.3465017,172.34,172.2,3.8672612]
[1730469807182,13.3465017,172.34,172.21,5.2]
[1730469807375,13.3465017,172.34,172.22,2.9052]
[1730469807687,11.0061,172.37,172.16,5.2]
[1730469807688,13.3465017,172.31,172.16,5.2]
[1730469807869,1.3255,172.3,172.16,5.2]
[1730469808071,1.3255,172.3,172.18,2.906]
[1730469808278,1.3581,172.29,172.16,5.2]
[1730469808575,2.9062,172.18,172.15,8.1066]
[1730469808779,13.3465017,172.25,172.1,15.9303629]
[1730469808982,2.906,172.19,172.15,2.9065]
[1730469809175,2.906,172.19,172.1,13.3465017]
[1730469809778,2.906,172.19,172.15,2.9064]
[1730469809983,2.9062,172.18,172.08,10.3873612]
[1730469810179,1.3369,172.24,172.14,2.9066]
[1730469810479,1.3369,172.24,172.09,1.57074038]
[1730469810681,13.3465017,172.22,172.09,1.57074038]
[1730469810876,1.29,172.21,172.09,1.57074038]
[1730469811084,2.9074,172.11,172.09,1.57074038]
[1730469811289,13.3465017,172.19,172.09,1.57074038]
[1730469811784,2.907,172.13,172.09,1.57074038]
[1730469812190,13.3465017,172.19,172.09,1.57074038]
[1730469812882,2.9063,172.17,172.12,2.907]
[1730469813183,1.3281,172.2,172.09,1.57074038]
[1730469813781,13.3465017,172.18,172.09,1.57074038]
[1730469814179,2.907,172.13,172.09,1.57074038]
[1730469814384,13.3465017,172.18,172.09,1.57074038]
[1730469814888,2.9069,172.14,172.09,4.47824038]
[1730469815079,13.3465017,172.15,171.99,5.2]
[1730469815387,13.3465017,172.12,171.95,16.0012017]
[1730469815577,1.3537,172.11,171.96,5.2]
[1730469815781,1.3537,172.11,171.95,16.0012017]
[1730469815986,2.9075,172.1,171.98,13.3465017]
[1730469816198,1.3174,172.13,171.98,13.3465017]
[1730469816387,1.3174,172.13,172.04,2.9083]
[1730469816388,2.9072,172.12,172.04,2.9083]
[1730469816588,2.9072,172.12,172.01,13.3465017]
[1730469816589,1.3174,172.13,172.03,5.2]
[1730469816983,2.9076,172.09,172.05,2.9081]
[1730469817190,2.9076,172.09,172.03,5.2]
[1730469817390,1.3174,172.13,172.03,5.2]
[1730469817592,1.3174,172.13,172.05,2.9082]
[1730469818085,1.3409,172.17,172.03,5.2]
[1730469818286,1.3409,172.17,172.04,13.3465017]
[1730469818482,1.3409,172.17,172.04,2.5741]
[1730469818694,1.3409,172.17,172.03,5.2]
[1730469818989,1.3409,172.17,171.98,1.3176]
[1730469818990,13.3465017,172.14,171.99,7.7741]
[1730469819490,13.3465017,172.14,171.99,2.5741]
[1730469819694,13.3465017,172.11,171.96,5.2]
[1730469820198,2.908,172.07,171.96,5.2]
[1730469820399,13.3465017,172.11,171.96,5.2]
[1730469820689,2.9084,172.05,172.01,2.9088]
[1730469820896,13.3465017,172.11,171.96,5.2]
[1730469821104,1.2521,172.1,171.96,5.2]
[1730469821699,1.2521,172.1,171.97,13.3465017]
[1730469821881,1.2521,172.1,172.05,2.9081]
[1730469822090,1.2521,172.1,171.98,1.3052]
[1730469822289,2.9079,172.06,172.02,2.9084]
[1730469823095,2.9077,172.07,172.03,2.9082]
[1730469823789,1.2521,172.1,171.98,1.3052]
[1730469824100,1.2521,172.1,172.04,2.908]
[1730469824294,1.2521,172.1,171.98,1.3052]
[1730469824491,2.9075,172.08,172.04,2.908]
[1730469824691,5.34,172.15,172.0,13.3465017]
[1730469824887,5.34,172.15,172.01,2.6597]
[1730469825191,2.9068,172.13,172.01,2.6597]
[1730469825694,2.9068,172.13,172.09,2.9072]
[1730469826300,1.3409,172.17,172.04,5.34]
[1730469827005,4.247,172.17,172.04,5.34]
[1730469827196,15.9001017,172.22,172.07,13.3465017]
[1730469827401,2.9057,172.19,172.07,13.3465017]
[1730469827604,2.9057,172.19,172.08,1.3421]
[1730469828502,1.2582,172.21,172.08,1.3421]
[1730469828800,2.9061,172.17,172.08,1.3421]
[1730469829206,2.9061,172.17,172.13,2.9065]
[1730469829499,2.9062,172.16,172.08,1.3421]
[1730469829699,1.2582,172.21,172.08,2.9074]
[1730469829898,1.2582,172.21,172.06,5.34]
[1730469830094,2.9061,172.16,172.06,5.34]
[1730469830291,2.9061,172.16,172.12,2.9067]
[1730469830503,1.2582,172.21,172.07,13.3465017]
[1730469830707,2.9055,172.2,172.1,13.3465017]
[1730469830892,1.2582,172.21,172.17,2.9058]
[1730469831095,1.2582,172.21,172.13,5.34]
[1730469831297,2.9052,172.22,172.13,5.34]
[1730469831508,2.9052,172.22,172.19,2.9055]
[1730469832308,2.5711,172.26,172.1,13.3465017]
[1730469832804,2.9056,172.19,172.16,2.906]
[1730469833003,2.5711,172.26,172.1,13.3465017]
[1730469833205,2.9049,172.23,172.13,13.3465017]
[1730469833405,2.9049,172.23,172.2,2.9053]
[1730469833599,2.5711,172.26,172.13,18.6865017]
[1730469834009,2.5711,172.26,172.16,2.906]
[1730469834604,2.9057,172.19,172.16,2.906]
[1730469834903,2.5711,172.26,172.13,8.2465]
[1730469835110,2.9058,172.19,172.13,5.34]
[1730469835307,2.5711,172.26,172.13,5.34]
[1730469836305,2.9056,172.2,172.17,2.9058]
[1730469836509,2.5711,172.26,172.13,5.34]
[1730469837013,2.5711,172.26,172.16,2.906]
[1730469837605,2.9058,172.18,172.15,2.9062]
[1730469837808,2.5711,172.26,172.13,5.34]
[1730469838011,13.3465017,172.24,172.13,5.34]
[1730469838200,13.3465017,172.24,172.09,1.3726]
[1730469838201,5.06,172.23,172.09,1.3726]
[1730469838397,13.3465017,172.18,172.05,7.6735]
[1730469838613,2.9069,172.12,172.09,2.9072]
[1730469839114,2.9065,172.14,172.11,2.9069]
[1730469839502,3.9817,172.17,172.05,7.6735]
[1730469840112,2.9064,172.15,172.05,7.6735]
[1730469840411,1.3236,172.17,172.05,7.6735]
[1730469840799,1.3236,172.17,172.07,13.3465017]
[1730469841003,2.5344,172.21,172.07,13.3465017]
[1730469841308,2.9057,172.19,172.15,2.9061]
[1730469841511,2.5344,172.21,172.15,2.9061]
[1730469841805,13.3465017,172.25,172.12,5.06]
[1730469842000,13.3465017,172.28,172.13,17.2958017]
[1730469842409,2.9048,172.24,172.18,2.9057]
[1730469842703,13.3465017,172.28,172.13,17.2958017]
[1730469843100,2.9052,172.22,172.19,2.9056]
[1730469845313,2.9052,172.22,172.13,17.2958017]
[1730469845517,2.9046,172.25,172.13,17.2958017]
[1730469845818,13.3465017,172.28,172.13,3.9493]
[1730469846911,2.9057,172.19,172.16,2.906]
[1730469848020,2.9052,172.22,172.18,2.9057]
[1730469848209,13.3465017,172.28,172.13,1.3276]
[1730469848409,13.3465017,172.28,172.13,14.6741017]
[1730469848811,13.3465017,172.28,172.2,2.9054]
[1730469849022,7.6436,172.29,172.13,14.6741017]
[1730469849023,2.5836,172.29,172.13,14.6741017]
[1730469849213,2.5836,172.29,172.14,2.6722]
[1730469850122,2.5836,172.29,172.16,13.3465017]
[1730469850616,1.2485,172.3,172.16,13.3465017]
[1730469851524,2.9047,172.25,172.16,13.3465017]
[1730469852028,2.6219,172.29,172.16,13.3465017]
[1730469852216,2.9046,172.26,172.22,2.905]
[1730469852525,2.6219,172.29,172.19,5.06]
[1730469853121,2.6219,172.29,172.22,2.9051]
[1730469853122,2.9044,172.26,172.22,2.9051]
[1730469853315,2.6219,172.29,172.19,5.06]
[1730469853716,2.9049,172.24,172.2,2.9053]
[1730469853914,1.2492,172.29,172.19,5.06]
[1730469854513,2.9044,172.27,172.19,5.06]
[1730469855025,1.2492,172.29,172.19,5.06]
[1730469855416,1.2492,172.29,172.22,2.9051]
[1730469855917,2.9049,172.24,172.21,2.9052]
[1730469856316,1.2492,172.29,172.19,5.06]
[1730469856515,2.9047,172.25,172.22,2.905]
[1730469857729,2.9048,172.24,172.22,2.905]
[1730469857927,1.2492,172.29,172.23,2.9049]
[1730469858327,2.9045,172.26,172.23,2.9049]
[1730469858525,2.9045,172.26,172.19,5.06]
[1730469858526,1.2492,172.29,172.22,2.9051]
[1730469859223,1.2492,172.29,172.19,5.06]
[1730469859224,1.3727,172.34,172.2,13.3465017]
[1730469859424,1.3727,172.34,172.21,1.2697]
[1730469859630,2.9039,172.3,172.21,1.2697]
[1730469859821,13.3465017,172.47,172.27,13.3465017]
[1730469860020,2.5914,172.44,172.3,13.3465017]
[1730469860223,13.3465017,172.5,172.38,2.9023]
[1730469860425,3.9478,172.49,172.37,5.06]
[1730469861425,3.9478,172.49,172.39,2.9022]
[1730469861924,3.9478,172.49,172.37,5.06]
[1730469862433,2.9011,172.46,172.37,5.06]
[1730469862724,3.9478,172.49,172.37,5.06]
[1730469863322,2.9016,172.43,172.38,2.9023]
[1730469863524,13.3465017,172.54,172.37,18.4065017]
[1730469863831,13.3465017,172.54,172.43,2.9015]
[1730469863832,2.9006,172.49,172.43,2.9015]
[1730469864128,3.8746,172.59,172.37,5.06]
[1730469864129,13.3465017,172.51,172.37,5.06]
[1730469864427,2.9012,172.46,172.4,2.9019]
[1730469864635,2.9012,172.46,172.37,18.4065017]
[1730469865022,2.9012,172.46,172.4,2.902]
[1730469865228,3.8746,172.5,172.37,5.06]
[1730469865922,3.8746,172.5,172.38,2.9024]
[1730469866337,2.9014,172.44,172.38,2.9024]
[1730469866530,2.9014,172.44,172.37,5.06]
[1730469866531,13.3465017,172.48,172.37,5.06]
[1730469867120,13.3465017,172.48,172.37,7.9626]
[1730469867327,3.8746,172.5,172.37,5.06]
[1730469867935,3.8746,172.5,172.37,18.4065017]
[1730469868237,3.8746,172.5,172.4,2.902]
[1730469868238,2.9011,172.46,172.4,2.902]
[1730469868426,3.8746,172.5,172.4,2.902]
[1730469868631,2.9011,172.46,172.4,2.902]
[1730469869027,2.9011,172.46,172.37,18.4065017]
[1730469869028,1.2514,172.5,172.37,18.4065017]
[1730469869533,1.2514,172.5,172.38,5.18]
[1730469869733,2.9019,172.42,172.38,5.18]
[1730469870130,1.3039,172.49,172.34,15.9146017]
[1730469870346,2.9017,172.43,172.37,2.9026]
[1730469870526,1.3039,172.49,172.35,5.18]
[1730469870730,13.3465017,172.45,172.34,2.5681]
[1730469871036,13.3465017,172.45,172.31,1.2697]
[1730469871037,13.3465017,172.42,172.35,5.18]
[1730469871422,13.3465017,172.42,172.31,1.2697]
[1730469871423,2.9027,172.36,172.31,1.2697]
[1730469871627,13.3465017,172.42,172.32,5.18]
[1730469872328,13.3465017,172.45,172.32,5.18]
[1730469872725,2.9022,172.4,172.35,2.9029]
[1730469872926,2.9022,172.4,172.32,5.18]
[1730469873129,2.9022,172.4,172.31,1.2697]
[1730469873334,2.9024,172.38,172.34,2.903]
[1730469873530,14.7039017,172.48,172.32,18.5265017]
[1730469874132,14.7039017,172.48,172.37,2.9025]
[1730469874335,14.7039017,172.48,172.32,18.5265017]
[1730469874635,2.9025,172.38,172.34,2.903]
[1730469874836,13.3465017,172.45,172.35,5.18]
[1730469875025,13.3465017,172.45,172.34,5.18]
[1730469875223,2.9025,172.38,172.34,8.0831]
[1730469875423,13.3465017,172.45,172.34,5.18]
[1730469876041,13.3465017,172.45,172.35,2.9028]
[1730469877539,2.9025,172.38,172.34,8.083]
[1730469877834,13.3465017,172.45,172.34,5.18]
[1730469878036,2.9029,172.35,172.34,5.18]
[1730469879331,2.6141,172.41,172.31,4.1733]
[1730469879532,2.6141,172.41,172.31,1.2697]
[1730469879729,2.6141,172.41,172.31,5.18]
[1730469879936,13.3465017,172.39,172.31,5.18]
[1730469880141,2.9034,172.32,172.31,5.18]
[1730469880637,2.9034,172.32,172.28,5.18]
[1730469881336,2.9034,172.32,172.29,2.9039]
[1730469881738,2.9034,172.32,172.28,5.18]
[1730469881933,2.9037,172.31,172.28,5.18]
[1730469882447,2.9037,172.31,172.27,5.18]
[1730469883237,2.9037,172.31,172.28,2.9041]
[1730469883836,13.3465017,172.39,172.27,5.18]
[1730469884142,2.9029,172.35,172.32,2.9033]
[1730469884345,1.2775,172.4,172.27,5.18]
[1730469884534,2.9029,172.35,172.32,2.9033]
[1730469888445,13.3465017,172.39,172.29,2.9039]
[1730469888659,1.2775,172.4,172.29,2.9039]
[1730469888660,8.36743387,172.36,172.29,2.9039]
[1730469888946,1.2775,172.4,172.3,8.36743387]
[1730469889251,1.2775,172.4,172.33,2.9032]
[1730469889842,2.9028,172.36,172.33,2.9032]
[1730469890037,1.2775,172.4,172.33,2.9032]
[1730469890236,1.2775,172.4,172.28,5.18]
[1730469890436,1.2775,172.4,172.31,2.9035]
[1730469890942,2.9032,172.34,172.28,5.18]
[1730469891139,1.2775,172.4,172.28,5.18]
[1730469891447,13.38260094,172.39,172.26,5.18]
[1730469893047,1.2775,172.4,172.26,18.56260094]
[1730469893555,1.2775,172.4,172.29,13.38260094]
[1730469893740,1.2775,172.4,172.32,2.9034]
[1730469893741,2.9027,172.37,172.32,2.9034]
[1730469894050,1.2775,172.4,172.29,13.38260094]
[1730469894444,2.9028,172.36,172.29,13.38260094]
[1730469895343,2.9028,172.36,172.33,2.9031]
[1730469897845,1.2775,172.4,172.26,5.18]
[1730469897846,1.2775,172.4,172.26,13.38260094]
[1730469898042,1.2775,172.4,172.29,4.9]
[1730469898443,2.9032,172.34,172.31,2.9036]
[1730469898845,1.2775,172.4,172.31,2.9036]
[1730469899043,2.9034,172.33,172.3,2.9037]
[1730469899350,13.38260094,172.39,172.29,4.9]
[1730469899749,19.18730094,172.39,172.29,4.9]
[1730469900052,19.18730094,172.39,172.21,4.9]
[1730469900053,13.38260094,172.36,172.21,4.9]
[1730469900445,2.9044,172.27,172.24,2.9047]
[1730469900645,13.38260094,172.32,172.22,4.9]
[1730469900840,2.904,172.29,172.23,2.9048]
[1730469901146,2.904,172.29,172.22,4.9]
[1730469901147,2.6056,172.31,172.22,4.9]
[1730469901453,2.9044,172.27,172.23,2.9048]
[1730469902551,2.6056,172.31,172.22,4.9]
[1730469902751,13.38260094,172.36,172.26,2.9043]
[1730469903053,15.88760094,172.36,172.22,4.9]
[1730469903250,2.9035,172.32,172.28,2.904]
[1730469903449,2.9035,172.32,172.24,6.6997975]
[1730469903857,1.2487,172.36,172.26,13.38260094]
[1730469904159,1.2563,172.4,172.26,13.38260094]
[1730469904350,2.9028,172.36,172.32,2.9033]
[1730469904657,1.2563,172.4,172.32,2.9033]
[1730469904955,1.2563,172.4,172.33,2.9031]
[1730469904956,2.9027,172.37,172.33,2.9031]
[1730469905153,1.2563,172.4,172.3,4.9]
[1730469905545,2.9024,172.38,172.3,4.9]
[1730469905944,1.3213,172.44,172.3,4.9]
[1730469906148,2.9021,172.4,172.34,2.903]
[1730469906344,1.3213,172.44,172.32,13.38260094]
[1730469906551,1.3726,172.45,172.35,13.38260094]
[1730469906855,2.9015,172.44,172.4,2.9021]
[1730469907241,1.302,172.49,172.39,4.9]
[1730469907642,1.3213,172.51,172.38,13.38260094]
[1730469907846,1.3213,172.51,172.39,4.9]
[1730469908047,13.38260094,172.57,172.41,13.38260094]
[1730469908348,1.3306,172.59,172.42,2.5938]
[1730469908556,2.9,172.53,172.48,2.9006]
[1730469908853,1.3306,172.59,172.49,4.9]
[1730469909861,2.8993,172.57,172.49,4.9]
[1730469910056,2.8993,172.57,172.52,2.8999]
[1730469910563,2.8993,172.57,172.49,4.9]
[1730469910564,1.3306,172.59,172.53,2.8999]
[1730469910755,2.6215,172.61,172.53,2.8999]
[1730469910950,2.6215,172.61,172.49,4.9]
[1730469911564,2.8997,172.55,172.49,4.9]
[1730469911755,2.6215,172.61,172.49,4.9]
[1730469912267,2.6215,172.61,172.51,2.9002]
[1730469912754,2.6215,172.61,172.49,4.9]
[1730469912956,2.8993,172.57,172.52,2.8999]
[1730469915857,2.8995,172.56,172.51,2.9002]
[1730469916056,2.8995,172.56,172.49,4.9]
[1730469916462,2.8995,172.56,172.51,2.9002]
[1730469916664,2.6215,172.61,172.51,2.9002]
[1730469917057,2.8995,172.56,172.51,2.9002]
[1730469917374,2.6215,172.61,172.48,2.9006]
[1730469917664,13.38260094,172.6,172.44,2.97065589]
[1730469917859,13.38260094,172.6,172.45,7.5212]
[1730469918060,13.38260094,172.6,172.45,4.62]
[1730469918458,13.38260094,172.6,172.46,2.901]
[1730469918459,2.9005,172.5,172.46,2.901]
[1730469918671,13.38260094,172.6,172.47,4.62]
[1730469919161,2.8994,172.57,172.47,4.62]
[1730469919361,1.3051,172.56,172.47,4.62]
[1730469920560,2.9006,172.49,172.47,4.62]
[1730469920760,1.3051,172.56,172.47,4.62]
[1730469921371,2.9004,172.51,172.47,4.62]
[1730469921760,2.9004,172.51,172.47,7.5207]
[1730469922656,2.9001,172.52,172.48,2.9007]
[1730469922856,1.3051,172.56,172.47,4.62]
[1730469923262,2.9,172.53,172.49,2.9004]
[1730469923460,2.6215,172.61,172.47,4.62]
[1730469923660,1.2656,172.6,172.47,4.62]
[1730469923863,1.2656,172.6,172.46,13.38260094]
[1730469924063,2.8996,172.55,172.47,4.62]
[1730469924272,1.2656,172.6,172.47,4.62]
[1730469924873,2.8995,172.56,172.52,2.9]
[1730469925175,2.8995,172.56,172.46,13.38260094]
[1730469925176,1.2656,172.6,172.53,4.62]
[1730469925473,1.2656,172.6,172.52,4.62]
[1730469925867,2.8998,172.54,172.52,4.62]
[1730469926270,2.8998,172.54,172.51,4.62]
[1730469926467,2.8998,172.54,172.51,7.5201]
[1730469927967,2.8998,172.54,172.24,34.00518076]
[1730469927968,47.38260094,172.53,172.35,13.38260094]
[1730469928174,47.38260094,172.53,172.32,16.01500094]
[1730469928175,13.38260094,172.5,172.32,16.01500094]
[1730469928476,13.38260094,172.5,172.35,2.9029]
[1730469928477,1.2913,172.49,172.35,2.9029]
[1730469928777,1.2913,172.49,172.32,16.01500094]
[1730469928973,2.9023,172.39,172.33,2.9031]
[1730469929472,2.9023,172.39,172.34,2.903]
[1730469930174,2.9025,172.38,172.33,2.9032]
[1730469930476,1.2913,172.49,172.32,16.01500094]
[1730469931572,13.38260094,172.46,172.32,2.6324]
[1730469931776,13.38260094,172.43,172.33,4.62]
[1730469932076,2.9025,172.38,172.33,4.62]
[1730469932277,13.38260094,172.46,172.33,4.62]
[1730469932876,1.2913,172.49,172.33,4.62]
[1730469932877,14.67390094,172.49,172.33,7.56989612]
[1730469933079,14.67390094,172.49,172.35,13.38260094]
[1730469933080,1.2913,172.49,172.35,13.38260094]
[1730469933275,2.9014,172.44,172.39,2.9022]
[1730469933466,2.9014,172.44,172.4,4.62]
[1730469933980,14.67390094,172.49,172.4,4.62]
[1730469934981,2.9017,172.43,172.4,4.62]
[1730469935179,1.2913,172.49,172.4,7.522]
[1730469935878,2.9015,172.44,172.4,7.522]
[1730469936374,2.9011,172.46,172.42,2.9017]
[1730469936681,2.9011,172.46,172.4,4.62]
[1730469936682,1.2913,172.49,172.4,4.62]
[1730469937072,2.901,172.47,172.41,2.9018]
[1730469937386,1.2913,172.49,172.4,4.62]
[1730469937878,2.901,172.47,172.42,2.9017]
[1730469938075,1.2913,172.49,172.4,4.62]
[1730469938283,2.6521,172.52,172.4,4.62]
[1730469938778,2.6521,172.52,172.43,2.9015]
[1730469939679,2.901,172.47,172.43,2.9015]
[1730469939872,2.901,172.47,172.44,2.9014]
[1730469940072,2.901,172.47,172.4,4.62]
[1730469940272,2.9008,172.48,172.44,2.9012]
[1730469940473,1.3604,172.54,172.4,4.62]
[1730469940474,1.3604,172.54,172.42,2.97145388]
[1730469940780,2.9005,172.5,172.46,2.9009]
[1730469940983,2.9005,172.5,172.41,14.62940094]
[1730469941189,2.9005,172.5,172.42,7.26963929]
[1730469941386,2.9001,172.52,172.44,13.38260094]
[1730469941582,2.6022,172.59,172.44,13.38260094]
[1730469942183,2.9,172.53,172.49,2.9004]
[1730469943085,2.6022,172.59,172.48,4.36]
[1730469943281,2.8998,172.54,172.48,4.36]
[1730469943884,2.8993,172.57,172.48,4.36]
[1730469944086,1.3567,172.59,172.48,6.9789]
[1730469944276,1.3567,172.59,172.49,1.3157]
[1730469944590,2.8992,172.57,172.49,1.3157]
[1730469945383,2.8988,172.6,172.56,2.8993]
[1730469945683,1.2606,172.64,172.49,1.3157]
[1730469945890,2.8993,172.57,172.49,5.6757]
[1730469946086,13.38260094,172.63,172.49,5.6757]
[1730469946384,1.2606,172.64,172.5,13.38260094]
[1730469946590,2.8988,172.6,172.5,13.38260094]
[1730469946782,1.2606,172.64,172.5,13.38260094]
[1730469946976,1.2606,172.64,172.53,13.38260094]
[1730469947184,1.2606,172.64,172.54,2.86088675]
[1730469947382,1.2606,172.64,172.55,4.36]
[1730469947684,2.8985,172.62,172.58,2.8989]
[1730469947880,2.8985,172.62,172.55,4.36]
[1730469948087,2.8982,172.64,172.6,2.8986]
[1730469948288,1.3456,172.68,172.61,4.36]
[1730469949389,2.8981,172.64,172.61,7.2584]
[1730469950587,2.8979,172.65,172.61,7.2584]
[1730469950780,1.3456,172.68,172.61,7.2584]
[1730469951387,2.898,172.65,172.61,4.36]
[1730469951584,1.3236,172.71,172.61,4.36]
[1730469951788,2.8975,172.68,172.61,4.36]
[1730469951990,2.8975,172.68,172.63,2.8982]
[1730469952890,2.8978,172.66,172.61,7.2584]
[1730469953083,1.3236,172.71,172.61,4.36]
[1730469954395,2.8974,172.68,172.61,4.36]
[1730469955100,2.8974,172.68,172.63,2.898]
[1730469955289,1.3236,172.71,172.63,2.898]
[1730469955791,2.8975,172.68,172.64,2.8979]
[1730469957187,1.3236,172.71,172.61,4.36]
[1730469957392,2.8972,172.69,172.65,2.8979]
[1730469957995,2.8974,172.68,172.63,2.8981]
[1730469958305,1.3236,172.71,172.61,4.36]
[1730469958485,2.8976,172.67,172.63,2.8982]
[1730469958685,1.3236,172.71,172.63,2.8982]
[1730469959290,2.8973,172.69,172.63,2.8982]
[1730469959496,1.3236,172.71,172.63,2.8982]
[1730469959800,1.3236,172.71,172.57,17.40350094]
[1730469960003,1.3236,172.71,172.58,4.36]
[1730469960496,1.3236,172.71,172.6,13.38260094]
[1730469961500,2.8976,172.67,172.63,2.8981]
[1730469962293,2.8975,172.68,172.64,2.8979]
[1730469962603,1.3236,172.71,172.6,13.38260094]
[1730469963097,1.3236,172.71,172.61,4.36]
[1730469963605,1.3236,172.71,172.57,13.38260094]
[1730469963903,1.3236,172.71,172.54,2.86088675]
[1730469963904,2.8975,172.68,172.58,7.2589]
[1730469964086,1.3236,172.71,172.58,7.2589]
[1730469964487,2.8987,172.61,172.58,4.36]
[1730469964900,1.3236,172.71,172.58,4.36]
[1730469965203,2.8985,172.62,172.58,7.259]
[1730469965404,2.8985,172.62,172.58,2.899]
[1730469965695,2.8985,172.62,172.58,4.36]
[1730469965899,2.8983,172.63,172.59,2.8988]
[1730469966098,1.3236,172.71,172.58,4.36]
[1730469966292,2.8975,172.68,172.58,4.36]
[1730469966499,1.3236,172.71,172.61,2.8984]
[1730469967494,1.3236,172.71,172.63,13.38260094]
[1730469967694,2.5579,172.74,172.64,4.36]
[1730469968001,2.8966,172.73,172.68,2.8973]
[1730469968198,1.3502,172.77,172.66,16.21055269]
[1730469968411,1.3502,172.77,172.66,13.38260094]
[1730469968606,1.3502,172.77,172.71,2.8968]
[1730469969509,2.8962,172.76,172.71,2.8968]
[1730469969897,4.2461,172.77,172.73,2.8965]
[1730469970205,1.3502,172.77,172.73,2.8965]
[1730469970405,2.6767,172.81,172.73,2.8965]
[1730469971102,2.6767,172.81,172.7,4.14]
[1730469971301,2.6767,172.81,172.69,13.38260094]
[1730469971500,2.6767,172.81,172.72,2.8967]
[1730469971696,2.6767,172.81,172.7,4.14]
[1730469973006,2.6767,172.81,172.73,13.38260094]
[1730469973195,1.323,172.81,172.73,13.38260094]
[1730469973396,2.8952,172.82,172.73,13.38260094]
[1730469973799,1.3108,172.87,172.75,2.8962]
[1730469974004,1.3108,172.87,172.76,4.14]
[1730469974205,2.895,172.83,172.76,4.14]
[1730469974403,1.3108,172.87,172.76,17.52260094]
[1730469974706,2.8949,172.83,172.76,17.52260094]
[1730469974902,1.3108,172.87,172.76,17.52260094]
[1730469975107,1.3108,172.87,172.79,13.38260094]
[1730469975815,4.2051,172.87,172.82,2.895]
[1730469976001,1.3108,172.87,172.82,4.14]
[1730469976412,4.2051,172.87,172.82,4.14]
[1730469976912,1.3108,172.87,172.82,7.035]
[1730469977304,2.5167,172.91,172.83,2.8947]
[1730469977504,2.5167,172.91,172.8,4.14]
[1730469978413,2.8946,172.85,172.8,7.0353]
[1730469978912,2.8946,172.85,172.8,4.14]
[1730469979113,2.8946,172.85,172.81,2.8951]
[1730469980207,2.5167,172.91,172.83,2.8947]
[1730469982118,2.5167,172.91,172.78,13.38260094]
[1730469982314,2.5167,172.91,172.8,4.14]
[1730469983015,2.8946,172.85,172.8,7.0353]
[1730469983223,2.5167,172.91,172.8,4.14]
[1730469983519,2.895,172.83,172.78,2.8956]
[1730469983708,15.89930094,172.91,172.78,2.8956]
[1730469984315,15.89930094,172.91,172.79,2.8955]
[1730469984705,15.89930094,172.91,172.77,4.14]
[1730469985306,2.8949,172.83,172.79,2.8954]
[1730469986018,15.89930094,172.91,172.77,4.14]
[1730469986613,15.89930094,172.91,172.78,2.8956]
[1730469987117,2.8951,172.82,172.78,2.8956]
[1730469987822,15.89930094,172.91,172.77,4.14]
[1730469988515,15.89930094,172.91,172.75,13.38260094]
[1730469988815,15.89930094,172.91,172.76,4.14]
[1730469989115,2.8943,172.87,172.77,2.8958]